bitfinex-derivatives/quotes_BTCF0:USTF0_20240929
["timestamp","ask_amount","ask_price","bid_price","bid_amount"]
[1727628363567,0.3608,65769.0,65768.0,0.32859432]
[1727628363768,0.0035,65770.0,65768.0,0.25258932]
[1727628364075,0.0035,65774.0,65773.0,0.076]
[1727628364262,0.3608,65777.0,65776.0,0.075996]
[1727628364462,0.3608,65777.0,65776.0,0.48599301]
[1727628364662,0.0035,65780.0,65776.0,0.40999701]
[1727628364869,0.0035,65783.0,65782.0,0.075989]
[1727628365078,0.3608,65784.0,65782.0,0.27975456]
[1727628365371,0.3608,65784.0,65783.0,0.18574256]
[1727628365572,0.3608,65784.0,65783.0,0.27574256]
[1727628365757,0.49050672,65784.0,65782.0,0.07869195]
[1727628365959,0.1677284,65783.0,65782.0,0.25468095]
[1727628366364,0.1777284,65783.0,65782.0,0.25468095]
[1727628366765,0.1677284,65783.0,65782.0,0.25468095]
[1727628367072,0.11322059,65783.0,65782.0,0.25468095]
[1727628367276,0.11321971,65783.0,65782.0,0.25468095]
[1727628367776,0.11321971,65783.0,65782.0,0.25568095]
[1727628368779,0.11321971,65783.0,65782.0,0.25668095]
[1727628372773,0.32277816,65784.0,65783.0,0.075988]
[1727628373079,0.32277816,65784.0,65783.0,0.185988]
[1727628374066,0.32277816,65784.0,65783.0,0.186988]
[1727628374575,0.32277816,65784.0,65783.0,0.187988]
[1727628376871,0.0035,65789.0,65788.0,0.075982]
[1727628377075,0.0957,65791.0,65790.0,0.07598]
[1727628377267,0.0957,65791.0,65790.0,0.15598]
[1727628378376,0.0957,65791.0,65790.0,0.15698]
[1727628378878,0.0957,65791.0,65790.0,0.15798]
[1727628379380,0.032,65791.0,65790.0,0.16798]
[1727628379573,0.08327575,65795.0,65794.0,0.075975]
[1727628379775,0.09627575,65795.0,65794.0,0.155975]
[1727628379974,0.00030175,65795.0,65794.0,0.155975]
[1727628380772,0.23035554,65795.0,65789.0,0.35151021]
[1727628380973,0.00030175,65795.0,65794.0,0.081]
[1727628381177,0.23035496,65795.0,65794.0,0.081]
[1727628381683,0.23035496,65795.0,65794.0,0.156975]
[1727628381880,0.23035496,65795.0,65794.0,0.08]
[1727628382072,0.23035496,65795.0,65794.0,0.155975]
[1727628382773,0.16799894,65795.0,65794.0,0.155975]
[1727628383675,0.16799894,65795.0,65794.0,0.165975]
[1727628384073,0.16899894,65795.0,65794.0,0.166975]
[1727628386169,0.16899392,65795.0,65794.0,0.166975]
[1727628387774,0.00130175,65795.0,65794.0,0.166975]
[1727628388893,0.00130175,65795.0,65794.0,0.086975]
[1727628389386,0.00130175,65795.0,65794.0,0.156975]
[1727628389787,0.01130175,65795.0,65794.0,0.156975]
[1727628389980,0.00130175,65795.0,65794.0,0.156975]
[1727628391278,0.01130175,65795.0,65794.0,0.156975]
[1727628391591,0.00130175,65795.0,65794.0,0.156975]
[1727628392583,0.00130175,65795.0,65794.0,0.166975]
[1727628394187,0.01130175,65795.0,65794.0,0.166975]
[1727628395289,0.00130175,65795.0,65794.0,0.166975]
[1727628395489,0.007,65799.0,65798.0,0.075971]
[1727628395692,0.007,65803.0,65802.0,0.075966]
[1727628395893,0.23001814,65803.0,65802.0,0.18]
[1727628396094,0.23001814,65803.0,65802.0,0.02]
[1727628396292,0.23001814,65803.0,65802.0,0.1]
[1727628396993,0.20067169,65803.0,65802.0,0.175966]
[1727628397602,0.20267169,65803.0,65802.0,0.177966]
[1727628399798,0.14032517,65803.0,65802.0,0.177966]
[1727628400402,0.14032062,65803.0,65802.0,0.177966]
[1727628400603,0.3643,65807.0,65806.0,0.075961]
[1727628400912,0.0035,65813.0,65810.0,0.075957]
[1727628401112,0.0644,65811.0,65810.0,0.155957]
[1727628401800,0.12674652,65811.0,65810.0,0.155957]
[1727628401997,0.12674652,65811.0,65810.0,0.10176549]
[1727628402202,0.06234652,65811.0,65810.0,0.10176549]
[1727628402401,0.06234652,65811.0,65810.0,0.17772249]
[1727628402603,0.06234652,65811.0,65810.0,0.1348392]
[1727628402803,0.13635697,65813.0,65810.0,0.0588822]
[1727628403003,0.13635697,65813.0,65812.0,0.155954]
[1727628403210,0.13635697,65813.0,65812.0,0.265954]
[1727628404308,0.44271276,65815.0,65814.0,0.075952]
[1727628404609,0.36150175,65815.0,65814.0,0.075952]
[1727628404815,0.43745275,65815.0,65814.0,0.075952]
[1727628405218,0.55864649,65815.0,65814.0,0.075952]
[1727628405409,0.43745275,65815.0,65814.0,0.075952]
[1727628405716,0.36150175,65815.0,65814.0,0.075952]
[1727628406310,0.36150175,65815.0,65814.0,0.076952]
[1727628406712,0.36150175,65815.0,65814.0,0.077952]
[1727628407205,0.48269549,65815.0,65814.0,0.077952]
[1727628408308,0.40812694,65815.0,65814.0,0.077952]
[1727628408507,0.59168192,65815.0,65814.0,0.077952]
[1727628408708,0.58168192,65815.0,65814.0,0.077952]
[1727628409917,0.59168192,65815.0,65814.0,0.077952]
[1727628410218,0.45532495,65815.0,65814.0,0.077952]
[1727628410421,0.40869976,65815.0,65814.0,0.077952]
[1727628410607,0.39869976,65815.0,65814.0,0.187952]
[1727628410805,0.40869976,65815.0,65814.0,0.187952]
[1727628412318,0.39869976,65815.0,65814.0,0.187952]
[1727628412620,0.39869976,65815.0,65814.0,0.077952]
[1727628413816,0.40869976,65815.0,65814.0,0.157952]
[1727628414020,0.53127613,65815.0,65814.0,0.157952]
[1727628414320,0.6676331,65815.0,65814.0,0.157952]
[1727628414823,0.66763413,65815.0,65814.0,0.157952]
[1727628415508,0.53127716,65815.0,65814.0,0.157952]
[1727628416405,0.53127716,65815.0,65814.0,0.002]
[1727628416406,0.61127716,65815.0,65814.0,0.002]
[1727628417218,0.61127716,65815.0,65808.0,0.0035]
[1727628417517,0.29233991,65809.0,65808.0,0.0302855]
[1727628417715,0.29233991,65809.0,65808.0,0.0267855]
[1727628417716,0.41616432,65809.0,65808.0,0.0267855]
[1727628417913,0.75164028,65809.0,65803.0,0.08]
[1727628418121,0.33314028,65808.0,65803.0,0.08]
[1727628418315,0.27084028,65807.0,65806.0,0.075961]
[1727628418519,0.31084028,65807.0,65806.0,0.155961]
[1727628418910,0.31084028,65807.0,65797.0,0.075972]
[1727628419112,0.3608,65802.0,65801.0,0.075967]
[1727628419412,0.63164519,65802.0,65801.0,0.175967]
[1727628419809,0.59444446,65802.0,65801.0,0.175967]
[1727628420009,0.52425134,65802.0,65801.0,0.175967]
[1727628420222,0.52525134,65802.0,65801.0,0.175967]
[1727628420908,0.52525134,65802.0,65801.0,0.255967]
[1727628421521,0.47862275,65802.0,65801.0,0.255967]
[1727628423608,0.52525082,65802.0,65801.0,0.255967]
[1727628424312,0.47862275,65802.0,65801.0,0.255967]
[1727628425334,0.3618,65802.0,65801.0,0.175967]
[1727628425622,0.3718,65802.0,65801.0,0.155967]
[1727628426220,0.3718,65802.0,65801.0,0.075967]
[1727628426428,0.447766,65802.0,65801.0,0.075967]
[1727628427726,0.075971,65798.0,65795.0,0.075974]
[1727628427930,0.138572,65797.0,65796.0,0.1022796]
[1727628428128,0.188572,65797.0,65796.0,0.1022796]
[1727628428329,0.188572,65797.0,65796.0,0.1782526]
[1727628429028,0.15056074,65797.0,65796.0,0.3698831]
[1727628429222,0.15056074,65797.0,65796.0,0.2980349]
[1727628429528,0.15056074,65797.0,65796.0,0.1822526]
[1727628429728,0.15056074,65797.0,65796.0,0.1862526]
[1727628429928,0.10056074,65797.0,65796.0,0.1862526]
[1727628430127,0.10056074,65797.0,65796.0,0.1822526]
[1727628430316,0.10056074,65797.0,65796.0,0.1862526]
[1727628430830,0.02558874,65797.0,65796.0,0.1792526]
[1727628432626,0.02558874,65797.0,65796.0,0.0782526]
[1727628433628,0.02558874,65797.0,65796.0,0.0882526]
[1727628434132,0.07222442,65797.0,65796.0,0.0882526]
[1727628434435,0.07222442,65797.0,65796.0,0.0782526]
[1727628434624,0.07222433,65797.0,65796.0,0.0782526]
[1727628436033,0.43302433,65797.0,65796.0,0.0782526]
[1727628436234,0.48751776,65797.0,65796.0,0.0782526]
[1727628436436,0.48751776,65797.0,65796.0,0.1782526]
[1727628437024,0.49751776,65797.0,65796.0,0.1782526]
[1727628437233,0.57348976,65797.0,65796.0,0.1782526]
[1727628438136,0.56348976,65797.0,65796.0,0.1782526]
[1727628438444,0.48751776,65797.0,65796.0,0.1782526]
[1727628438735,0.49751776,65797.0,65796.0,0.1782526]
[1727628439629,0.49751794,65797.0,65796.0,0.1782526]
[1727628440326,0.39638874,65797.0,65796.0,0.2237206]
[1727628440532,0.39638874,65797.0,65796.0,0.22372963]
[1727628440740,0.39638874,65797.0,65796.0,0.1782526]
[1727628440928,0.39638874,65797.0,65796.0,0.22373181]
[1727628441332,0.39638874,65797.0,65796.0,0.1782526]
[1727628441548,0.47236074,65797.0,65796.0,0.1782526]
[1727628443742,0.11156074,65797.0,65796.0,0.1782526]
[1727628444247,0.47236074,65797.0,65796.0,0.1782526]
[1727628444741,0.11156074,65797.0,65796.0,0.1782526]
[1727628445043,0.47236074,65797.0,65796.0,0.1782526]
[1727628445243,0.47236074,65797.0,65796.0,0.2388766]
[1727628446237,0.47236074,65797.0,65796.0,0.1782526]
[1727628448241,0.63584133,65797.0,65796.0,0.11023036]
[1727628448449,0.63584133,65797.0,65796.0,0.1]
[1727628448947,0.27504133,65797.0,65796.0,0.175973]
[1727628449149,0.63584133,65797.0,65796.0,0.175973]
[1727628449349,0.55986933,65797.0,65796.0,0.175973]
[1727628449551,0.54986931,65797.0,65796.0,0.175973]
[1727628450052,0.18906931,65797.0,65796.0,0.175973]
[1727628450239,0.63584131,65797.0,65796.0,0.175973]
[1727628451044,0.52528057,65797.0,65796.0,0.175973]
[1727628453450,0.53528057,65797.0,65796.0,0.175973]
[1727628453945,0.52528057,65797.0,65796.0,0.175973]
[1727628454143,0.53528057,65797.0,65796.0,0.175973]
[1727628454344,0.5352795,65797.0,65796.0,0.13529197]
[1727628455445,0.3718,65797.0,65796.0,0.25107337]
[1727628458255,0.3718,65797.0,65796.0,0.25107542]
[1727628459136,0.3718,65797.0,65796.0,0.25107541]
[1727628459536,0.3618,65797.0,65796.0,0.25107541]
[1727628463048,0.3618,65797.0,65796.0,0.34223164]
[1727628463446,0.3618,65797.0,65796.0,0.28397541]
[1727628464046,0.3618,65797.0,65796.0,0.28397036]
[1727628464443,0.3618,65797.0,65796.0,0.37516267]
[1727628468954,0.3618,65797.0,65796.0,0.28397036]
[1727628469455,0.3618,65797.0,65796.0,0.37514146]
[1727628470349,0.4629239,65797.0,65796.0,0.16819197]
[1727628478058,0.4629239,65797.0,65796.0,0.19194759]
[1727628478364,0.3618,65797.0,65796.0,0.39889411]
[1727628478665,0.323791,65797.0,65796.0,0.3988941]
[1727628481162,0.323791,65797.0,65796.0,0.307723]
[1727628481349,0.323791,65797.0,65796.0,0.44863857]
[1727628482064,0.323791,65797.0,65796.0,0.44863316]
[1727628483169,0.323791,65797.0,65796.0,0.42487754]
[1727628485365,0.42491136,65797.0,65796.0,0.16819197]
[1727628486862,0.42490991,65797.0,65796.0,0.16819197]
[1727628487162,0.42490991,65797.0,65796.0,0.19194704]
[1727628488257,0.6222758,65797.0,65796.0,0.19194704]
[1727628490274,0.6222758,65797.0,65796.0,0.16819197]
[1727628490768,0.0035,65805.0,65804.0,0.075964]
[1727628490971,0.3608,65807.0,65805.0,0.075963]
[1727628491166,0.3608,65807.0,65805.0,0.185963]
[1727628492181,0.3608,65807.0,65805.0,0.186963]
[1727628493481,0.0373,65813.0,65805.0,0.186963]
[1727628493482,0.0373,65813.0,65805.0,0.30272325]
[1727628493974,0.0373,65813.0,65805.0,0.44361757]
[1727628494176,0.0373,65813.0,65809.0,0.075958]
[1727628494368,0.0373,65813.0,65809.0,0.37171825]
[1727628494369,0.0607,65813.0,65809.0,0.37171825]
[1727628495275,0.0322,65810.0,65809.0,0.37371825]
[1727628495481,0.0322,65810.0,65809.0,0.44959263]
[1727628495667,0.0322,65810.0,65809.0,0.4495899]
[1727628496381,0.0322,65810.0,65809.0,0.33383238]
[1727628498274,0.0322,65810.0,65809.0,0.257958]
[1727628498580,0.0322,65810.0,65809.0,0.28052738]
[1727628504577,0.001,65810.0,65809.0,0.28052738]
[1727628508273,0.0304,65813.0,65809.0,0.20356938]
[1727628508579,0.0304,65813.0,65809.0,0.03631987]
[1727628508580,0.233621,65812.0,65809.0,0.03631987]
[1727628508780,0.233621,65811.0,65809.0,0.03631987]
[1727628508969,0.233621,65810.0,65809.0,0.03631987]
[1727628509170,0.233621,65810.0,65809.0,0.11631987]
[1727628509782,0.233621,65810.0,65809.0,0.19227787]
[1727628510974,0.234621,65810.0,65809.0,0.19227787]
[1727628513885,0.234621,65810.0,65809.0,0.101]
[1727628514085,0.23461812,65810.0,65809.0,0.181]
[1727628514785,0.23461812,65810.0,65809.0,0.256958]
[1727628514979,0.16442969,65810.0,65809.0,0.256958]
[1727628515477,0.001,65810.0,65809.0,0.256958]
[1727628516080,0.001,65810.0,65809.0,0.712838]
[1727628516986,0.00420175,65815.0,65814.0,0.075952]
[1727628517186,0.00420175,65815.0,65814.0,0.616752]
[1727628518091,0.00420175,65815.0,65814.0,0.617752]
[1727628518092,0.00520175,65815.0,65814.0,0.617752]
[1727628518390,0.00520175,65815.0,65814.0,0.618752]
[1727628519389,0.00520175,65815.0,65814.0,0.67940832]
[1727628519883,0.00520175,65815.0,65814.0,0.618752]
[1727628520090,0.00420175,65815.0,65814.0,0.617752]
[1727628520284,0.00420175,65815.0,65814.0,0.68340832]
[1727628520484,0.00420175,65815.0,65814.0,0.68240832]
[1727628520685,0.00420175,65815.0,65814.0,0.68640832]
[1727628523582,0.23780552,65815.0,65814.0,0.51350603]
[1727628523782,0.23780552,65815.0,65814.0,0.58945803]
[1727628524489,0.16761709,65815.0,65814.0,0.58945803]
[1727628525396,0.23780662,65815.0,65814.0,0.58945803]
[1727628525578,0.23780696,65815.0,65814.0,0.264952]
[1727628528582,0.23780696,65815.0,65814.0,0.14882555]
[1727628528790,0.23780696,65815.0,65814.0,0.22882555]
[1727628529491,0.19118872,65815.0,65814.0,0.22882555]
[1727628530597,0.00420175,65815.0,65814.0,0.22882555]
[1727628532093,0.3612,65822.0,65814.0,0.22882555]
[1727628532390,0.3612,65822.0,65821.0,0.075944]
[1727628532587,0.3612,65822.0,65821.0,0.185944]
[1727628538488,0.40781414,65822.0,65821.0,0.185944]
[1727628538698,0.52460428,65822.0,65821.0,0.185944]
[1727628539500,0.47799014,65822.0,65821.0,0.265944]
[1727628539708,0.47799014,65822.0,65821.0,0.19]
[1727628539996,0.55799014,65822.0,65818.0,0.075947]
[1727628540206,0.0004,65819.0,65818.0,0.075947]
[1727628540399,0.19719014,65819.0,65816.0,0.84451199]
[1727628540591,0.076349,65817.0,65813.0,0.40295146]
[1727628540792,0.0004,65814.0,65813.0,0.42295146]
[1727628540989,0.16009014,65814.0,65813.0,0.42295146]
[1727628541194,0.15009014,65814.0,65813.0,0.42295146]
[1727628541990,0.15009014,65814.0,65813.0,0.49890446]
[1727628542191,0.08776826,65814.0,65813.0,0.48890446]
[1727628542507,0.08776826,65814.0,65813.0,0.47890446]
[1727628542889,0.08776826,65814.0,65813.0,0.48390446]
[1727628543303,0.08776826,65814.0,65813.0,0.48990446]
[1727628544004,0.08776826,65814.0,65813.0,0.49990446]
[1727628544504,0.08776826,65814.0,65813.0,0.48990446]
[1727628545497,0.08776826,65814.0,65813.0,0.51240346]
[1727628545703,0.0333,65814.0,65813.0,0.51240346]
[1727628546097,0.0332,65816.0,65813.0,0.44645046]
[1727628546402,0.0332,65816.0,65815.0,0.155951]
[1727628546599,0.0332,65816.0,65815.0,0.265951]
[1727628547604,0.0332,65816.0,65815.0,0.268951]
[1727628549199,0.0332,65816.0,65815.0,0.272951]
[1727628549802,0.0332,65816.0,65815.0,0.162951]
[1727628550604,0.0432,65816.0,65815.0,0.007]
[1727628550810,0.10915,65816.0,65815.0,0.007]
[1727628551014,0.11915,65816.0,65815.0,0.007]
[1727628551610,0.10915,65816.0,65815.0,0.007]
[1727628551909,0.11915,65816.0,65815.0,0.007]
[1727628553704,0.0432,65816.0,65815.0,0.082951]
[1727628554108,0.0432,65816.0,65815.0,0.092951]
[1727628554314,0.0432,65816.0,65815.0,0.082951]
[1727628556012,0.0432,65816.0,65815.0,0.162951]
[1727628556618,0.0432,65816.0,65815.0,0.172951]
[1727628557818,0.0432,65816.0,65815.0,0.162951]
[1727628558913,0.0332,65816.0,65815.0,0.172951]
[1727628560611,0.19662041,65816.0,65815.0,0.05718741]
[1727628560812,0.26680424,65816.0,65815.0,0.09]
[1727628561718,0.22018266,65816.0,65815.0,0.165951]
[1727628563221,0.23018266,65816.0,65815.0,0.165951]
[1727628563622,0.23018266,65816.0,65815.0,0.155951]
[1727628564815,0.23018266,65816.0,65815.0,0.14035591]
[1727628565621,0.23018266,65816.0,65815.0,0.07128285]
[1727628565820,0.23018266,65816.0,65815.0,0.15128285]
[1727628566722,0.22018266,65816.0,65815.0,0.16128285]
[1727628567121,0.23018266,65816.0,65815.0,0.15128285]
[1727628568828,0.0432,65816.0,65815.0,0.15128285]
[1727628569523,0.11915,65816.0,65815.0,0.15128285]
[1727628570119,0.11915,65816.0,65815.0,0.07128285]
[1727628575835,0.23595943,65816.0,65815.0,0.07128285]
[1727628576431,0.17362727,65816.0,65815.0,0.07128285]
[1727628577823,0.09767727,65816.0,65815.0,0.07128285]
[1727628578725,0.09767727,65816.0,65815.0,0.08128285]
[1727628578922,0.08767727,65816.0,65815.0,0.08128285]
[1727628579726,0.15000943,65816.0,65815.0,0.08128285]
[1727628579927,0.39309178,65816.0,65815.0,0.08128285]
[1727628581530,0.39309178,65816.0,65815.0,0.07128285]
[1727628581926,0.39309178,65816.0,65815.0,0.08128285]
[1727628583834,0.27628235,65816.0,65815.0,0.08128285]
[1727628584227,0.0332,65816.0,65815.0,0.08128285]
[1727628588242,0.0432,65816.0,65815.0,0.07128285]
[1727628588833,0.0332,65816.0,65815.0,0.08128285]
[1727628589341,0.0332,65816.0,65815.0,0.07128285]
[1727628589532,0.0432,65816.0,65815.0,0.07128285]
[1727628591433,0.3612,65817.0,65816.0,0.07595]
[1727628591643,0.3612,65817.0,65816.0,0.09595]
[1727628591842,0.3612,65817.0,65816.0,0.17595]
[1727628592737,0.3612,65817.0,65816.0,0.17995]
[1727628596743,0.0004,65817.0,65816.0,0.17995]
[1727628596941,0.0004,65817.0,65816.0,0.22545006]
[1727628597650,0.0004,65817.0,65816.0,0.17995]
[1727628598745,0.11719867,65817.0,65816.0,0.17995]
[1727628602049,0.11719867,65817.0,65816.0,0.09995]
[1727628602355,0.11719867,65817.0,65816.0,0.17995]
[1727628603341,0.36011778,65817.0,65816.0,0.17995]
[1727628604253,0.11719867,65817.0,65816.0,0.17995]
[1727628605740,0.0004,65817.0,65816.0,0.17995]
[1727628609849,0.0004,65817.0,65816.0,0.20369696]
[1727628611243,0.0004,65817.0,65816.0,0.20369697]
[1727628612551,0.0004,65817.0,65816.0,0.12369697]
[1727628612753,0.0424,65817.0,65816.0,0.10369697]
[1727628613063,0.0324,65817.0,65816.0,0.11369697]
[1727628613853,0.075941,65824.0,65819.0,0.075946]
[1727628614064,0.085941,65824.0,65823.0,0.09093154]
[1727628614362,0.085941,65824.0,65823.0,0.11573868]
[1727628614558,0.085941,65824.0,65823.0,0.20667037]
[1727628615061,0.085941,65824.0,65823.0,0.11573868]
[1727628615062,0.086941,65824.0,65823.0,0.11573868]
[1727628615863,0.089941,65824.0,65823.0,0.11573868]
[1727628616763,0.089941,65824.0,65823.0,0.19168068]
[1727628616960,0.156741,65824.0,65823.0,0.19168068]
[1727628617763,0.156741,65824.0,65823.0,0.28261237]
[1727628618170,0.156741,65824.0,65823.0,0.19168068]
[1727628618368,0.155741,65824.0,65823.0,0.19168068]
[1727628618668,0.159741,65824.0,65823.0,0.19168483]
[1727628620368,0.159741,65824.0,65823.0,0.28261652]
[1727628620767,0.159741,65824.0,65823.0,0.68973335]
[1727628621071,0.08374367,65824.0,65823.0,0.68973335]
[1727628621256,0.08374367,65824.0,65823.0,0.82658382]
[1727628621569,0.15968467,65824.0,65823.0,0.82658382]
[1727628621969,0.15968467,65824.0,65823.0,0.85411263]
[1727628623472,0.15968467,65824.0,65823.0,0.85411375]
[1727628627464,0.52048467,65824.0,65823.0,0.85411375]
[1727628628173,0.52048467,65824.0,65823.0,0.85411302]
[1727628628866,0.48728661,65824.0,65823.0,0.24032128]
[1727628629171,0.48728661,65824.0,65823.0,0.10347081]
[1727628635871,0.36569106,65824.0,65823.0,0.85411288]
[1727628636874,0.44163206,65824.0,65823.0,0.85411288]
[1727628637069,0.44163206,65824.0,65823.0,0.71726241]
[1727628637472,0.44163206,65824.0,65823.0,0.85411288]
[1727628637868,0.44163206,65824.0,65823.0,0.85412008]
[1727628638480,0.44163206,65824.0,65823.0,0.71726961]
[1727628639076,0.44163206,65824.0,65823.0,0.42264453]
[1727628642690,0.44163206,65824.0,65823.0,0.42267672]
[1727628643986,0.42842933,65824.0,65823.0,0.42267672]
[1727628648184,0.42842933,65824.0,65823.0,0.52887545]
[1727628648779,1.48418933,65824.0,65823.0,0.52887545]
[1727628648981,1.48418933,65824.0,65823.0,0.25664619]
[1727628650881,1.48418933,65824.0,65820.0,0.10619873]
[1727628650882,0.075944,65821.0,65820.0,0.10619873]
[1727628651193,0.075947,65819.0,65818.0,0.03106711]
[1727628651382,0.467147,65819.0,65818.0,0.02756711]
[1727628651583,0.075948,65818.0,65817.0,0.075949]
[1727628651778,0.196348,65818.0,65817.0,0.075949]
[1727628652488,0.196348,65818.0,65813.0,0.075953]
[1727628652489,0.075951,65815.0,65813.0,0.075953]
[1727628652690,0.075952,65814.0,65813.0,0.075953]
[1727628652887,0.105952,65814.0,65813.0,0.075953]
[1727628653979,0.105952,65814.0,65813.0,0.10986872]
[1727628654792,0.105952,65814.0,65813.0,0.11486872]
[1727628658988,0.03,65814.0,65813.0,0.53757601]
[1727628659187,0.11,65814.0,65813.0,0.53757601]
[1727628659397,0.11,65814.0,65813.0,0.65899091]
[1727628659593,0.11,65814.0,65813.0,0.49518712]
[1727628659594,0.185952,65814.0,65813.0,0.49518712]
[1727628659799,0.185952,65814.0,65813.0,0.26766475]
[1727628660001,0.223952,65814.0,65813.0,0.26766475]
[1727628660395,0.679792,65814.0,65813.0,0.26766475]
[1727628660902,0.679792,65814.0,65813.0,0.12676232]
[1727628661097,0.223952,65814.0,65813.0,0.26768628]
[1727628661299,0.223952,65814.0,65813.0,0.12676232]
[1727628662202,0.075957,65810.0,65809.0,0.0035]
[1727628662397,0.075957,65810.0,65809.0,0.14092298]
[1727628662398,0.616757,65810.0,65809.0,0.14092298]
[1727628662593,1.672637,65810.0,65809.0,0.14092298]
[1727628663193,0.075963,65805.0,65804.0,0.0035]
[1727628663406,0.166963,65805.0,65804.0,0.14092506]
[1727628664396,0.166963,65805.0,65804.0,0.15492506]
[1727628664999,0.157963,65805.0,65804.0,0.15492506]
[1727628665697,0.158963,65805.0,65804.0,0.16892506]
[1727628667096,0.158963,65805.0,65804.0,0.24488906]
[1727628668005,0.158963,65805.0,65804.0,0.24489039]
[1727628670198,0.158963,65805.0,65804.0,0.24489037]
[1727628671309,0.158963,65805.0,65804.0,0.59707881]
[1727628671310,0.001,65805.0,65804.0,0.59707881]
[1727628671501,0.001,65805.0,65804.0,0.50095414]
[1727628672601,0.001,65805.0,65804.0,0.49095414]
[1727628672798,0.001,65805.0,65804.0,0.50095414]
[1727628673501,0.011,65805.0,65804.0,0.41095414]
[1727628673803,0.0277877,65808.0,65804.0,0.33499014]
[1727628674001,0.0377877,65808.0,65807.0,0.07596]
[1727628675106,0.0387877,65808.0,65807.0,0.08596]
[1727628676200,0.0397877,65808.0,65807.0,0.08596]
[1727628676395,0.012,65808.0,65807.0,0.08596]
[1727628676602,0.002,65808.0,65807.0,0.08596]
[1727628676803,0.002,65808.0,65807.0,0.09596]
[1727628677001,0.012,65808.0,65807.0,0.09596]
[1727628677316,0.012,65808.0,65807.0,0.11596]
[1727628677614,0.002,65808.0,65807.0,0.11596]
[1727628677812,0.002,65808.0,65807.0,0.09596]
[1727628678013,0.002,65808.0,65807.0,0.10596]
[1727628680005,0.002,65808.0,65807.0,0.14306]
[1727628680207,0.002,65808.0,65807.0,0.324538]
[1727628680409,0.002,65808.0,65807.0,0.334538]
[1727628680815,0.002,65808.0,65807.0,0.33453803]
[1727628681015,0.26398252,65809.0,65807.0,0.60124472]
[1727628681211,0.26398252,65809.0,65808.0,0.49868882]
[1727628682117,0.27398252,65809.0,65808.0,0.49868882]
[1727628682713,0.27498252,65809.0,65808.0,0.49868882]
[1727628683520,0.27498252,65809.0,65808.0,0.50768882]
[1727628684019,0.27598252,65809.0,65808.0,0.50768882]
[1727628684219,0.27598252,65809.0,65808.0,0.39192597]
[1727628684516,0.27498252,65809.0,65808.0,0.50769658]
[1727628684822,0.27598252,65809.0,65808.0,0.51769658]
[1727628685423,0.012,65809.0,65808.0,0.51769658]
[1727628689118,0.012,65809.0,65808.0,0.094959]
[1727628692530,0.087958,65809.0,65808.0,0.094959]
[1727628696033,0.087958,65809.0,65808.0,0.35165284]
[1727628699021,0.448758,65809.0,65808.0,0.35165284]
[1727628701630,0.448758,65809.0,65808.0,0.44175521]
[1727628701831,0.51314719,65809.0,65808.0,0.44175521]
[1727628702742,0.55094719,65809.0,65808.0,0.54804937]
[1727628703036,0.55094719,65809.0,65808.0,0.019]
[1727628704843,0.55094719,65809.0,65803.0,0.0035]
[1727628705036,0.075967,65801.0,65800.0,0.0035]
[1727628705234,0.4908,65801.0,65795.0,0.15783021]
[1727628705545,0.155973,65796.0,65795.0,0.15783021]
[1727628705746,0.185973,65796.0,65795.0,0.15783021]
[1727628705934,0.171973,65796.0,65795.0,0.15783021]
[1727628706135,0.171973,65796.0,65795.0,0.112274]
[1727628706643,0.141973,65796.0,65795.0,0.112274]
[1727628706842,0.151973,65796.0,65795.0,0.112274]
[1727628707145,0.147973,65796.0,65795.0,0.112274]
[1727628707536,0.148973,65796.0,65795.0,0.123274]
[1727628708146,0.148973,65796.0,65795.0,0.15107725]
[1727628708348,0.147973,65796.0,65795.0,0.14507725]
[1727628708547,0.148973,65796.0,65795.0,0.117274]
[1727628708743,0.148973,65796.0,65795.0,0.14103153]
[1727628709050,0.148973,65796.0,65795.0,0.117274]
[1727628710942,0.091,65796.0,65795.0,0.117274]
[1727628711143,0.08,65800.0,65795.0,0.65040418]
[1727628711343,0.075971,65799.0,65798.0,0.07597]
[1727628711541,0.095971,65799.0,65798.0,0.33269781]
[1727628713135,0.095971,65799.0,65798.0,0.33569522]
[1727628714042,0.096971,65799.0,65798.0,0.33569522]
[1727628714850,0.021,65799.0,65798.0,0.50177774]
[1727628715843,0.096971,65799.0,65798.0,0.50177774]
[1727628717954,0.096971,65799.0,65798.0,0.50177767]
[1727628718158,0.096971,65799.0,65798.0,0.07897]
[1727628722648,0.021,65799.0,65798.0,0.07897]
[1727628722957,0.021,65799.0,65798.0,0.15481005]
[1727628723151,0.09697,65799.0,65798.0,0.15481005]
[1727628723351,0.021,65799.0,65798.0,0.15481005]
[1727628723552,0.021,65799.0,65798.0,0.19475904]
[1727628724964,0.001,65799.0,65798.0,0.32475904]
[1727628725148,0.3608,65807.0,65803.0,0.075965]
[1727628725349,0.3608,65807.0,65806.0,0.075962]
[1727628725557,0.3608,65807.0,65806.0,0.155962]
[1727628726166,0.32518944,65807.0,65806.0,0.72403008]
[1727628726463,0.32518944,65807.0,65806.0,0.617854]
[1727628727158,0.33118944,65807.0,65806.0,0.617854]
[1727628727954,0.33518944,65807.0,65806.0,0.617854]
[1727628728252,0.33518944,65807.0,65806.0,0.61720538]
[1727628728654,0.33218944,65807.0,65806.0,0.61720538]
[1727628729054,0.32618944,65807.0,65806.0,0.54120538]
[1727628729659,0.32618944,65807.0,65806.0,0.54020538]
[1727628730452,0.32618944,65807.0,65806.0,0.64633727]
[1727628731255,0.011,65807.0,65806.0,0.64633727]
[1727628731649,0.08,65808.0,65806.0,0.57037527]
[1727628731859,0.1,65808.0,65807.0,0.33264365]
[1727628732956,0.1,65808.0,65807.0,0.33464365]
[1727628733759,0.101,65808.0,65807.0,0.33464365]
[1727628734159,0.101,65808.0,65807.0,0.49978602]
[1727628734659,0.1,65808.0,65807.0,0.49978602]
[1727628738465,0.09,65808.0,65807.0,0.49978602]
[1727628741068,0.03678896,65808.0,65807.0,0.49978602]
[1727628741264,0.03678896,65808.0,65807.0,0.07796]
[1727628747164,0.01,65808.0,65807.0,0.07796]
[1727628747377,0.09,65808.0,65807.0,0.08796]
[1727628748070,0.3608,65810.0,65807.0,0.16796]
[1727628748272,0.31519118,65810.0,65809.0,0.18206076]